bitfinex/quotes_SOLUSD_20260309
["timestamp","ask_amount","ask_price","bid_price","bid_amount"]
[1773036160891,3.09431672,84.237,84.209,11.87521523]
[1773036162102,3.09431672,84.237,84.21,14.73150535]
[1773036162473,3.09431672,84.237,84.211,3.13164519]
[1773036162680,3.09431672,84.249,84.211,3.13164519]
[1773036162882,3.09431672,84.248,84.211,3.13164519]
[1773036164590,11.86877138,84.255,84.221,3.13164519]
[1773036164797,11.86718249,84.266,84.241,3.13164519]
[1773036165377,3.09431672,84.265,84.226,3.13164519]
[1773036165882,3.09431672,84.259,84.226,3.13164519]
[1773036166798,3.09431672,84.257,84.227,11.8726774]
[1773036168105,3.09431672,84.257,84.23,11.59986016]
[1773036168307,3.09431672,84.257,84.231,3.13164519]
[1773036168511,3.09431672,84.257,84.227,11.8726774]
[1773036168683,3.09431672,84.257,84.17,1.28807175]
[1773036168684,3.09431672,84.249,84.217,3.13164519]
[1773036168884,14.96403469,84.248,84.219,3.13164519]
[1773036169084,3.09431672,84.248,84.219,3.13164519]
[1773036169392,3.09431672,84.248,84.22,11.59986016]
[1773036169592,14.96293395,84.256,84.221,3.13164519]
[1773036169785,3.09431672,84.255,84.221,3.13164519]
[1773036169986,3.09431672,84.263,84.231,3.13164519]
[1773036170382,11.86774584,84.262,84.231,3.13164519]
[1773036170595,3.09431672,84.262,84.231,3.13164519]
[1773036170797,3.09431672,84.262,84.233,3.13164519]
[1773036171307,11.86718249,84.266,84.233,3.13164519]
[1773036171679,3.09431672,84.265,84.233,3.13164519]
[1773036173504,3.09431672,84.259,84.232,11.87197264]
[1773036173806,3.09431672,84.259,84.233,3.13164519]
[1773036174183,11.86746416,84.264,84.233,3.13164519]
[1773036174786,3.09431672,84.259,84.234,11.87169076]
[1773036175689,3.09431672,84.259,84.235,3.13164519]
[1773036177014,3.09431672,84.257,84.228,3.13164519]
[1773036179110,3.09431672,84.257,84.229,15.00404068]
[1773036179893,3.09431672,84.257,84.229,11.87239549]
[1773036180093,3.09431672,84.257,84.23,3.13164519]
[1773036180295,7.54981778,84.267,84.251,3.13164519]
[1773036180546,6.01606649,84.267,84.251,3.13164519]
[1773036180709,11.86483276,84.283,84.251,3.13164519]
[1773036180906,14.95914948,84.283,84.251,3.13164519]
[1773036181316,14.95914948,84.283,84.252,11.86915444]
[1773036181515,14.95914948,84.283,84.253,1.7340207]
[1773036181920,3.09431672,84.283,84.26,11.59986016]
[1773036182223,11.86416655,84.288,84.261,1.7340207]
[1773036183029,3.13355893,84.305,84.28,11.59986016]
[1773036183214,3.13355893,84.305,84.28,1.73183201]
[1773036183421,11.86183336,84.304,84.281,11.86507041]
[1773036183800,3.13355893,84.303,84.281,11.86507041]
[1773036184904,3.13355893,84.303,84.273,1.72969331]
[1773036185309,11.86211477,84.302,84.273,1.72969331]
[1773036185512,3.13355893,84.299,84.271,11.86647838]
[1773036186822,3.13355893,84.297,84.262,1.72852749]
[1773036187223,3.13355893,84.297,84.261,11.86788668]
[1773036188324,3.13355893,84.289,84.26,11.86800565]
[1773036188920,2.94426883,84.287,84.251,11.86929531]
[1773036189109,2.94426883,84.287,84.252,1.72819076]
[1773036189508,2.94426883,84.287,84.26,4.32731741]
[1773036189705,2.94426883,84.287,84.251,11.86929531]
[1773036190236,2.94426883,84.287,84.252,1.72808109]
[1773036190924,2.94426883,84.293,84.254,1.72797267]
[1773036191125,2.94426883,84.293,84.261,1.72797267]
[1773036194029,2.94426883,84.293,84.263,1.72765484]
[1773036195306,2.94426883,84.291,84.263,1.72765484]
[1773036195508,2.94426883,84.289,84.262,11.86774584]
[1773036196108,2.94426883,84.287,84.257,11.86845009]
[1773036196739,2.94426883,84.287,84.227,0.28432314]
[1773036196740,2.94426883,84.269,84.225,1.72734784]
[1773036197040,0.28432314,84.295,84.14,19.53186939]
[1773036197041,6.8593465,84.287,84.261,1.72734784]
[1773036198835,5.72563219,84.287,84.271,0.420825]
[1773036199417,5.72563219,84.287,84.262,11.86774584]
[1773036200234,8.9912922,84.287,84.262,11.86774584]
[1773036200931,3.26566001,84.286,84.257,11.86831508]
[1773036202332,3.26566001,84.284,84.251,11.86929531]
[1773036202517,3.26566001,84.279,84.241,11.87070428]
[1773036203835,3.26566001,84.277,84.241,11.87070428]
[1773036206016,3.26566001,84.269,84.23,4.32882594]
[1773036206212,4.32882594,84.25,84.218,11.87394618]
[1773036206416,3.26566001,84.239,84.208,11.87535626]
[1773036206648,3.26566001,84.239,84.2,4.32882594]
[1773036206938,3.26566001,84.219,84.181,11.87916513]
[1773036208015,3.26566001,84.217,84.18,0.1]
[1773036208418,29.68175291,84.227,84.18,0.1]
[1773036208419,10.99930983,84.225,84.18,0.1]
[1773036208638,10.99930983,84.225,84.19,11.61206528]
[1773036208828,7.73364982,84.225,84.18,0.1]
[1773036209029,7.73364982,84.225,84.21,11.61206528]
[1773036209531,7.73364982,84.225,84.2,11.61206528]
[1773036210041,7.73364982,84.225,84.201,11.87634351]
[1773036210245,3.26566001,84.249,84.21,11.61206528]
[1773036210576,3.26566001,84.246,84.21,11.61206528]
[1773036211049,7.71835768,84.249,84.23,11.61206528]
[1773036211246,7.71835768,84.249,84.22,11.61206528]
[1773036211449,7.71835768,84.249,84.201,41.56720228]
[1773036211626,22.85359477,84.249,84.22,11.61206528]
[1773036212149,3.26566001,84.248,84.22,11.61206528]
[1773036212321,3.26566001,84.248,84.221,11.87352323]
[1773036212519,3.26566001,84.246,84.221,11.87352323]
[1773036214419,3.26566001,84.244,84.221,11.87352323]
[1773036215226,7.71835768,84.249,84.23,11.61206528]
[1773036215435,7.71835768,84.249,84.24,11.61206528]
[1773036217230,7.71835768,84.249,84.221,29.68380807]
[1773036217442,7.71835768,84.249,84.23,11.61206528]
[1773036217762,3.26566001,84.274,84.24,11.61206528]
[1773036218080,3.26566001,84.283,84.25,11.61206528]
[1773036218229,3.26566001,84.282,84.25,11.61206528]
[1773036218429,3.26566001,84.28,84.251,11.86929531]
[1773036218833,7.72740975,84.283,84.26,11.61206528]
[1773036219247,22.85786202,84.283,84.26,11.61206528]
[1773036219434,3.26566001,84.282,84.251,41.5425336]
[1773036219641,3.26566001,84.282,84.26,11.61206528]
[1773036220538,3.26566001,84.282,84.261,11.86788668]
[1773036220737,7.72740975,84.283,84.227,0.28432314]
[1773036220738,3.26566001,84.28,84.254,11.86882008]
[1773036221542,3.26566001,84.28,84.26,11.61206528]
[1773036225579,3.26566001,84.278,84.251,11.86919418]
[1773036225735,3.26566001,84.278,84.26,11.61206528]
[1773036225938,3.26566001,84.278,84.251,11.86919418]
[1773036226666,3.26566001,84.278,84.26,11.61206528]
[1773036228956,3.26566001,84.278,84.251,11.86919418]
[1773036229468,3.26566001,84.276,84.25,11.61206528]
[1773036229768,3.26566001,84.276,84.25,4.32833985]
[1773036230444,7.72740975,84.283,84.27,4.32833985]
[1773036231147,3.26566001,84.292,84.27,4.32833985]
[1773036231342,3.26566001,84.292,84.268,11.86683388]
[1773036232352,3.26566001,84.292,84.261,11.86788668]
[1773036233170,3.26566001,84.289,84.251,11.86929531]
[1773036234366,3.26566001,84.287,84.26,4.32833985]
[1773036235154,11.86354098,84.292,84.26,4.32833985]
[1773036235467,7.73909239,84.294,84.27,4.32833985]
[1773036235769,11.8633813,84.293,84.27,4.32833985]
[1773036236068,11.8633813,84.293,84.251,41.5425336]
[1773036236069,3.26566001,84.289,84.251,11.86929531]
[1773036236257,3.26566001,84.289,84.261,11.86788668]
[1773036236447,3.26566001,84.287,84.261,11.86788668]
[1773036236651,3.26566001,84.287,84.256,11.86857502]
[1773036237254,3.26566001,84.287,84.26,4.32833985]
[1773036237564,3.26566001,84.293,84.27,4.32833985]
[1773036237766,3.26566001,84.293,84.26,4.32833985]
[1773036238269,3.26566001,84.292,84.261,11.86788668]
[1773036239677,3.26566001,84.292,84.261,41.53760339]
[1773036240674,7.73909239,84.294,84.27,4.32833985]
[1773036240877,7.73909239,84.294,84.28,4.32833985]
[1773036241279,7.73909239,84.294,84.27,4.32833985]
[1773036241678,3.26566001,84.289,84.175,34.5]
[1773036241861,3.26566001,84.289,84.26,4.32833985]
[1773036242765,3.26566001,84.287,84.261,11.86788668]
[1773036243465,3.26566001,84.292,84.27,4.32833985]
[1773036243666,3.26566001,84.292,84.261,11.86788668]
[1773036243667,7.72234091,84.293,84.28,4.32833985]
[1773036244356,3.26566001,84.307,84.28,4.32833985]
[1773036245577,3.26566001,84.305,84.27,4.32833985]
[1773036245761,3.26566001,84.305,84.263,11.86760499]
[1773036246473,7.686564,84.316,84.29,4.32833985]
[1773036246474,3.26566001,84.313,84.29,4.32833985]
[1773036246859,3.26566001,84.313,84.291,11.86366278]
[1773036247280,3.26566001,84.311,84.29,4.32833985]
[1773036247464,3.26566001,84.311,84.29,16.19201219]
[1773036249686,11.8609892,84.31,84.29,4.32833985]
[1773036249980,3.26566001,84.311,84.29,16.19209784]
[1773036250182,7.686564,84.316,84.29,16.19209784]
[1773036250560,7.686564,84.316,84.3,4.32833985]
[1773036250761,7.686564,84.316,84.262,11.86774521]
[1773036250762,3.26566001,84.309,84.262,11.86774521]
[1773036251160,4.32833985,84.3,84.262,11.86774521]
[1773036251361,3.26566001,84.299,84.257,11.86838581]
[1773036251593,3.26566001,84.299,84.2,4.32833985]
[1773036251594,3.26566001,84.289,84.17,0.1]
[1773036251765,3.26566001,84.285,84.24,4.32833985]
[1773036252873,3.26566001,84.279,84.241,11.87070428]
[1773036254883,3.26566001,84.277,84.241,11.87070428]
[1773036255615,3.26566001,84.277,84.25,4.32833985]
[1773036256490,3.26566001,84.277,84.241,41.547465]
[1773036256789,3.26566001,84.277,84.25,4.32833985]
[1773036256984,3.26566001,84.277,84.251,11.86929531]
[1773036257177,11.86488408,84.283,84.251,11.86929531]
[1773036257487,15.13054409,84.283,84.251,11.86929531]
[1773036257888,3.26566001,84.282,84.251,11.86929531]
[1773036258099,3.26566001,84.282,84.24,4.32833985]
[1773036258291,3.26566001,84.279,84.24,4.32833985]
[1773036258672,3.26566001,84.279,84.238,11.87109229]
[1773036259174,3.26566001,84.277,84.233,11.87176503]
[1773036259996,3.26566001,84.277,84.24,4.32833985]
[1773036261394,3.26566001,84.283,84.26,4.32833985]
[1773036263196,3.26566001,84.282,84.26,4.32833985]
[1773036263374,3.26566001,84.282,84.253,11.86901225]
[1773036265594,3.26566001,84.28,84.248,11.86959694]
[1773036266981,3.26566001,84.279,84.242,11.87049587]
[1773036267683,41.5292247,84.278,84.242,11.87049587]
[1773036267882,3.26566001,84.277,84.242,11.87049587]
[1773036268113,3.26566001,84.277,84.25,4.3276878]
[1773036269802,3.26566001,84.275,84.242,11.87049587]
[1773036271003,3.26566001,84.269,84.22,4.3276878]
[1773036271177,3.26566001,84.249,84.21,4.3276878]
[1773036271902,3.26566001,84.247,84.211,11.8749332]
[1773036272401,3.26566001,84.247,84.182,3.69383402]
[1773036272703,3.26566001,84.229,84.196,11.87702093]
[1773036273277,3.26566001,84.229,84.2,4.3276878]
[1773036273684,3.26566001,84.229,84.2,11.60661125]
[1773036273883,3.26566001,84.228,84.201,11.87634351]
[1773036274302,3.26566001,84.228,84.15,0.1]
[1773036274508,3.26566001,84.209,84.178,11.87954103]
[1773036274806,3.26566001,84.209,84.181,11.87916513]
[1773036275187,3.26566001,84.209,84.18,11.70661125]
[1773036275387,3.26566001,84.209,84.18,0.1]
[1773036276187,3.26566001,84.207,84.18,0.1]
[1773036276686,3.26566001,84.207,84.18,11.70661125]
[1773036279118,3.26566001,84.214,84.19,11.60661125]
[1773036279499,3.26566001,84.224,84.2,11.60661125]
[1773036281014,3.26566001,84.233,84.21,11.60661125]
[1773036281230,3.26566001,84.242,84.22,11.60661125]
[1773036281798,3.26566001,84.256,84.23,11.60661125]
[1773036282200,3.26566001,84.256,84.22,11.60661125]
[1773036282403,11.86913369,84.253,84.22,11.60661125]
[1773036282604,3.26566001,84.249,84.18,0.1]
[1773036282795,3.26566001,84.247,84.21,11.60661125]
[1773036283214,3.26566001,84.239,84.21,11.60661125]
[1773036283615,3.26566001,84.239,84.204,11.87579752]
[1773036284120,3.26566001,84.239,84.201,11.87634351]
[1773036284704,11.60661125,84.24,84.2,11.60661125]
[1773036284705,3.26566001,84.237,84.2,11.60661125]
[1773036284901,3.26566001,84.229,84.19,11.60661125]
[1773036285299,3.26566001,84.227,84.2,11.60661125]
[1773036285992,3.26566001,84.227,84.191,11.87775415]
[1773036286399,3.26566001,84.227,84.2,11.60661125]
[1773036286589,3.26566001,84.227,84.191,11.87775415]
[1773036286807,41.55387756,84.228,84.18,0.1]
[1773036286808,3.26566001,84.219,84.18,11.70661125]
[1773036287016,3.26566001,84.209,84.18,0.1]
[1773036287325,3.26566001,84.207,84.18,0.1]
[1773036288205,3.26566001,84.207,84.17,11.70661125]
[1773036288206,3.21566001,84.199,84.17,0.1]
[1773036288404,3.21566001,84.189,84.17,0.1]
[1773036289311,3.16566001,84.179,84.16,0.1]
[1773036289502,3.16566001,84.179,84.15,0.1]
[1773036289503,3.16566001,84.179,84.151,11.88340007]
[1773036289691,3.16566001,84.179,84.15,11.70661125]
[1773036290319,3.16566001,84.179,84.15,23.59012842]
[1773036290527,3.16566001,84.179,84.15,11.70661125]
[1773036291713,3.82467186,84.187,84.15,11.70661125]
[1773036291714,3.11566001,84.177,84.151,11.88340007]
[1773036291922,7.59937773,84.197,84.17,14.7421256]
[1773036292096,7.59937773,84.197,84.18,11.60661125]
[1773036292296,7.59937773,84.197,84.171,3.13551435]
[1773036292496,7.59937773,84.197,84.17,11.60661125]
[1773036293145,7.59937773,84.197,84.18,11.60661125]
[1773036294495,7.59937773,84.197,84.181,11.87916513]
[1773036294928,7.59937773,84.197,84.18,11.60661125]
[1773036295418,7.59937773,84.197,84.19,11.60661125]
[1773036295721,7.59937773,84.197,84.18,23.48585299]
[1773036297202,7.59937773,84.197,84.18,26.62136734]
[1773036298006,7.59937773,84.197,84.18,23.48585299]
[1773036299526,7.59937773,84.197,84.175,3.13551435]
[1773036299709,7.59937773,84.197,84.18,11.60661125]
[1773036300408,11.87704879,84.196,84.17,11.60661125]
[1773036300726,7.59937773,84.197,84.18,11.60661125]
[1773036301832,7.59937773,84.197,84.181,11.87916513]
[1773036302007,7.59937773,84.197,84.178,3.13551435]
[1773036302327,3.03947257,84.196,84.17,14.7421256]
[1773036302728,3.03947257,84.195,84.151,3.13551435]
[1773036302906,3.03947257,84.195,84.066,47.58163517]
[1773036302907,3.09221522,84.179,84.145,11.88414322]
[1773036303108,3.09221522,84.179,84.14,11.70661125]
[1773036303425,45.18264973,84.196,84.124,2.947941]
[1773036303426,3.09221522,84.159,84.124,2.947941]
[1773036303726,3.09221522,84.157,84.12,0.1]
[1773036303924,11.88241165,84.158,84.12,0.1]
[1773036303925,3.09221522,84.149,84.12,0.1]
[1773036304705,3.09221522,84.139,84.111,11.88902172]
[1773036304924,0.28432314,84.155,84.08,11.70661125]
[1773036304925,3.09221522,84.119,84.08,11.70661125]
[1773036305225,3.09221522,84.127,84.092,2.947941]
[1773036305416,3.09221522,84.127,84.1,11.60661125]
[1773036306007,3.09221522,84.127,84.091,11.89187903]
[1773036306008,3.09221522,84.144,84.111,2.947941]
[1773036306215,3.09221522,84.144,84.11,11.60661125]
[1773036307308,3.09221522,84.144,84.111,2.947941]
[1773036307930,3.09221522,84.139,84.111,2.947941]
[1773036308107,3.09221522,84.139,84.1,23.49710131]
[1773036308308,3.09221522,84.139,84.11,11.60661125]
[1773036309711,2.93889157,84.138,84.111,11.88905137]
[1773036310428,2.93889157,84.155,84.12,11.60661125]
[1773036310630,11.88269404,84.156,84.12,11.60661125]
[1773036310631,2.93889157,84.149,84.12,11.60661125]
[1773036311135,2.93889157,84.149,84.111,41.6116798]
[1773036311136,2.93889157,84.169,84.14,11.60661125]
[1773036311432,2.93889157,84.156,84.13,11.60661125]
[1773036311925,2.93889157,84.154,84.13,11.60661125]
[1773036313136,2.93889157,84.154,84.131,11.88622505]
[1773036313331,8.3833488,84.157,84.14,11.60661125]
[1773036314530,8.3833488,84.157,84.14,23.49150089]
[1773036314736,2.93889157,84.179,84.15,11.60661125]
[1773036315037,14.81833893,84.179,84.15,11.60661125]
[1773036315233,2.93889157,84.178,84.141,3.05787909]
[1773036315443,2.93889157,84.178,84.15,11.60661125]
[1773036316130,7.33765728,84.184,84.16,11.60661125]
[1773036316322,7.33765728,84.184,84.17,11.60661125]
[1773036317821,2.93889157,84.183,84.16,11.60661125]
[1773036318021,7.33765728,84.184,84.17,11.60661125]
[1773036318232,7.33765728,84.184,84.17,14.66449034]
[1773036319137,7.33765728,84.184,84.171,11.88057644]
[1773036319734,2.93889157,84.183,84.16,11.60661125]
[1773036320339,7.33765728,84.184,84.17,11.60661125]
[1773036320717,22.15530355,84.184,84.16,11.60661125]
[1773036320935,2.93889157,84.183,84.16,11.60661125]
[1773036323030,7.33765728,84.184,84.17,11.60661125]
[1773036323524,2.93889157,84.182,84.16,11.60661125]
[1773036323928,2.93889157,84.182,84.17,11.60661125]
[1773036324618,2.93889157,84.182,84.115,1.1888486]
[1773036324619,2.93889157,84.179,84.13,11.60661125]
[1773036324944,2.93889157,84.149,84.11,14.66449034]
[1773036325127,2.93889157,84.149,84.111,3.05787909]
[1773036325322,2.93889157,84.149,84.12,11.60661125]
[1773036325945,41.87276392,84.158,84.091,3.05787909]
[1773036325946,2.93889157,84.129,84.091,3.05787909]
[1773036326243,2.93889157,84.129,84.083,3.05787909]
[1773036327517,2.93889157,84.129,84.09,11.70661125]
[1773036327723,2.93889157,84.127,84.09,11.73721886]
[1773036328239,2.93889157,84.127,84.091,3.05787909]
[1773036328436,2.93889157,84.119,84.09,0.1]
[1773036329638,2.93889157,84.109,84.09,0.1]
[1773036329833,2.93889157,84.107,84.09,0.1]
[1773036331544,2.93889157,84.129,84.101,3.05787909]
[1773036331847,14.82483406,84.133,84.101,3.05787909]
[1773036332148,4.53792336,84.134,84.09,0.1]
[1773036332149,4.53792336,84.134,84.111,3.05787909]
[1773036332646,11.88594249,84.133,84.111,3.05787909]
[1773036333845,4.53792336,84.134,84.111,3.05787909]
[1773036334326,11.88594249,84.133,84.111,3.05787909]
[1773036334847,4.53792336,84.134,84.111,3.05787909]
[1773036335046,4.53792336,84.134,84.113,2.9230572]
[1773036335849,3.02799319,84.133,84.105,2.9230572]
[1773036336049,16.42374048,84.134,84.09,0.1]
[1773036336050,3.02799319,84.119,84.09,0.1]
[1773036336244,11.88658615,84.129,84.091,2.9230572]
[1773036336430,3.02799319,84.154,84.121,2.9230572]
[1773036336626,3.02799319,84.152,84.121,2.9230572]
[1773036337239,3.02799319,84.149,84.11,11.63721886]
[1773036337839,3.02799319,84.148,84.111,2.9230572]
[1773036338038,3.02799319,84.148,84.11,11.63721886]
[1773036338039,3.02799319,84.148,84.12,11.63721886]
[1773036338344,3.02799319,84.147,84.121,14.81069524]
[1773036338652,4.87249994,84.149,84.122,2.9230572]
[1773036339449,7.90049313,84.149,84.122,2.9230572]
[1773036340747,7.90049313,84.149,84.123,11.88735542]
[1773036341049,86.41788504,84.373,84.123,11.88735542]
[1773036341050,3.02799319,84.168,84.14,11.63721886]
[1773036341749,3.10265966,84.166,84.13,11.63721886]
[1773036342248,3.10265966,84.159,84.123,11.88735542]
[1773036342447,3.10265966,84.159,84.12,11.63721886]
[1773036342643,3.10265966,84.157,84.12,11.63721886]
[1773036343047,3.10265966,84.149,84.11,11.63721886]
[1773036345128,3.10265966,84.119,84.08,11.73721886]
[1773036345643,3.10265966,84.119,84.09,11.73721886]
[1773036347163,3.10265966,84.117,84.09,0.1]
[1773036347332,3.10265966,84.099,84.08,0.1]
[1773036348660,3.10265966,84.099,84.07,0.1]
[1773036348832,3.05265966,84.089,84.07,0.1]
[1773036349238,3.05265966,84.087,84.07,0.1]
[1773036350655,3.05265966,84.085,84.07,0.1]
[1773036351233,11.63721886,84.1,84.07,0.1]
[1773036351234,3.05265966,84.093,84.07,0.1]
[1773036352950,11.63721886,84.1,84.07,0.1]
[1773036353137,3.05265966,84.098,84.07,0.1]
[1773036355160,3.05265966,84.096,84.07,0.1]
[1773036356942,11.89103059,84.097,84.037,0.24938609]
[1773036356943,3.05265966,84.079,84.037,0.24938609]
[1773036357240,3.05265966,84.077,84.042,11.8988108]
[1773036357650,3.05265966,84.069,84.042,11.8988108]
[1773036358163,3.05265966,84.069,84.04,11.83721886]
[1773036358164,3.05265966,84.069,84.041,11.89894461]
[1773036359144,3.05265966,84.069,84.04,11.83721886]
[1773036359455,3.05265966,84.078,84.051,11.89753839]
[1773036359652,3.05265966,84.078,84.05,0.2]
[1773036360043,11.63721886,84.07,84.05,0.2]
[1773036360242,3.05265966,84.069,84.05,0.2]
[1773036360879,3.05265966,84.069,84.04,0.2]
[1773036361169,3.05265966,84.068,84.041,41.64633928]
[1773036361469,3.05265966,84.076,84.05,11.63721886]
[1773036361646,3.05265966,84.076,84.04,0.2]
[1773036361647,3.05265966,84.069,84.04,0.2]
[1773036361842,3.05265966,84.069,84.041,11.89895408]
[1773036362158,3.05265966,84.069,84.04,0.2]
[1773036362348,3.05265966,84.069,84.04,11.83721886]
[1773036362766,3.05265966,84.069,84.04,0.2]
[1773036363269,3.05265966,84.069,84.04,11.83721886]
[1773036363765,11.63721886,84.07,84.03,11.63721886]
[1773036363766,3.05265966,84.059,84.03,11.63721886]
[1773036364265,11.63721886,84.07,84.031,0.20554109]
[1773036364566,11.89433379,84.074,84.041,0.20033993]
[1773036364567,3.05265966,84.074,84.041,0.20033993]
[1773036364975,3.05265966,84.074,84.05,11.63721886]
[1773036365852,3.05265966,84.072,84.043,11.89853742]
[1773036366062,3.05265966,84.072,84.05,11.63721886]
[1773036366452,3.05265966,84.072,84.043,41.64521471]
[1773036366663,3.05265966,84.072,84.043,11.89853742]
[1773036367066,3.05265966,84.072,84.05,11.63721886]
[1773036367366,3.05265966,84.08,84.05,11.63721886]
[1773036367563,11.63721886,84.08,84.05,11.63721886]
[1773036367762,3.05265966,84.077,84.035,0.18509214]
[1773036367964,3.05265966,84.077,84.05,11.63721886]
[1773036370066,3.05265966,84.077,84.051,11.89753839]
[1773036370467,3.05900955,84.075,84.051,11.89753839]
[1773036370948,3.05900955,84.089,84.06,11.63721886]
[1773036371273,3.05900955,84.089,84.051,41.64138438]
[1773036372768,11.8923033,84.088,84.051,41.64138438]
[1773036372974,3.05900955,84.087,84.051,41.64138438]
[1773036374575,3.05900955,84.091,84.061,0.14692285]
[1773036374769,10.42244077,84.099,84.07,4.34814811]
[1773036375166,10.42244077,84.099,84.08,4.34814811]
[1773036375688,7.36343122,84.099,84.08,4.34814811]
[1773036376379,7.36343122,84.099,84.074,0.14692285]
[1773036377076,7.36343122,84.099,84.08,4.34814811]
[1773036377856,7.36343122,84.099,84.074,0.14692285]
[1773036378679,7.36343122,84.099,84.08,4.34814811]
[1773036379692,7.36343122,84.099,84.073,0.12479759]
[1773036379982,7.36343122,84.099,84.08,4.34814811]
[1773036380659,29.71630218,84.129,84.057,0.28432314]
[1773036380660,3.05900955,84.122,84.091,0.12052384]
[1773036381175,3.05900955,84.122,84.1,4.34814811]
[1773036382565,3.05900955,84.129,84.1,4.34814811]
[1773036382764,6.77149981,84.134,84.111,0.11212305]
[1773036382966,6.77149981,84.134,84.12,4.34814811]
[1773036383865,6.77149981,84.134,84.101,41.61662762]
[1773036383866,3.05900955,84.133,84.11,4.34814811]
[1773036385088,3.05900955,84.133,84.111,11.88905137]
[1773036386485,3.05900955,84.133,84.103,0.10799488]
[1773036387094,3.05900955,84.133,84.1,4.34814811]
[1773036387980,3.05900955,84.133,84.101,11.89046503]
[1773036388169,3.05900955,84.133,84.101,11.98241599]
[1773036388372,3.05900955,84.149,84.12,4.43620259]
[1773036388567,3.05900955,84.147,84.112,0.08805448]
[1773036388993,3.05900955,84.147,84.11,4.34814811]
[1773036389272,3.05900955,84.147,84.102,0.08805448]
[1773036389474,3.05900955,84.109,84.06,4.34814811]
[1773036389688,3.05900955,84.099,84.053,41.64039355]
[1773036389892,0.28432314,84.108,84.053,41.64039355]
[1773036389893,3.05900955,84.089,84.053,11.8972553]
[1773036390193,3.05900955,84.089,84.062,0.08420277]
[1773036392577,3.05900955,84.089,84.06,11.64403324]
[1773036393173,3.05900955,84.089,84.07,11.64403324]
[1773036393377,3.05265966,84.099,84.07,11.64403324]
[1773036393682,3.05265966,84.099,84.071,11.89470804]
[1773036394202,11.8908892,84.098,84.0,12.21497784]
[1773036394416,11.8908892,84.098,84.03,11.64403324]
[1773036394417,3.05265966,84.069,84.03,11.64403324]
[1773036394577,0.28432314,84.095,84.016,11.90249476]
[1773036394578,3.05265966,84.059,84.019,0.06200394]
[1773036394777,3.05265966,84.059,84.03,11.64403324]
[1773036395006,3.05265966,84.069,84.032,0.06200394]
[1773036395182,3.05265966,84.069,84.03,11.64403324]
[1773036395495,3.05265966,84.069,84.016,41.65873166]
[1773036395496,3.05265966,84.069,84.05,11.64403324]
[1773036395979,3.05265966,84.069,84.04,11.64403324]
[1773036396185,3.05265966,84.069,84.04,11.70248468]
[1773036396997,3.05265966,84.069,84.05,11.64403324]
[1773036397698,3.05265966,84.069,84.041,0.05493974]
[1773036398286,3.05265966,84.069,84.041,41.70127902]
[1773036398600,3.05265966,84.069,84.05,11.64403324]
[1773036398780,3.05265966,84.069,84.041,41.64633928]
[1773036398979,3.05265966,84.069,84.041,11.89895408]
[1773036399289,3.05265966,84.069,84.05,11.64403324]
[1773036399481,3.05265966,84.069,84.041,41.64633928]
[1773036400101,3.05265966,84.079,84.05,11.64403324]
[1773036401497,0.28432314,84.105,84.06,11.68201034]
[1773036401498,3.05265966,84.087,84.06,11.68201034]
[1773036401698,3.05265966,84.087,84.019,34.78432314]
[1773036401699,3.05265966,84.087,84.019,34.5]
[1773036401906,11.8923033,84.088,84.031,0.0379771]
[1773036401907,3.05265966,84.069,84.031,0.0379771]
[1773036402499,3.05265966,84.069,84.04,11.64403324]
[1773036402700,3.05265966,84.087,84.051,0.03470057]
[1773036402890,3.05265966,84.087,84.05,11.64403324]
[1773036403481,3.05265966,84.085,84.05,11.64403324]
[1773036403678,3.05265966,84.085,84.05,23.54169859]
[1773036405194,3.05265966,84.079,84.05,23.54169859]
[1773036405397,3.05265966,84.079,84.051,0.02825998]
[1773036405594,3.05265966,84.079,84.06,11.64403324]
[1773036406105,3.05265966,84.088,84.06,11.64403324]
[1773036406886,3.05265966,84.088,84.02,59.50964056]
[1773036406887,3.05265966,84.069,84.0,0.1]
[1773036407091,11.64403324,84.06,84.02,11.64403324]
[1773036407383,3.05265966,84.049,84.014,11.90270978]
[1773036409906,3.05265966,84.07,84.04,11.64403324]
[1773036410794,3.05265966,84.069,84.03,11.64403324]
[1773036411710,3.05265966,84.069,84.041,11.89895408]
[1773036412111,3.05265966,84.069,84.05,11.64403324]
[1773036412493,3.05265966,84.079,84.06,11.64403324]
[1773036413797,3.05265966,84.088,84.061,11.89612305]
[1773036416096,11.89244472,84.087,84.061,11.89612305]
[1773036416296,3.05265966,84.086,84.061,11.89612305]
[1773036416512,3.05265966,84.086,84.07,11.64403324]
[1773036416722,3.05265966,84.086,84.061,11.89612305]
[1773036420809,3.05265966,84.095,84.07,11.64403324]
[1773036421608,3.05265966,84.095,84.061,11.89612305]
[1773036422919,11.8915962,84.093,84.061,11.89612305]
[1773036423121,3.05265966,84.092,84.061,11.89612305]
[1773036424422,3.05265966,84.089,84.06,11.64403324]
[1773036425123,3.05265966,84.087,84.06,23.54017509]
[1773036425420,3.05265966,84.087,84.06,11.64403324]
[1773036427209,3.05265966,84.085,84.05,11.64403324]